Cogmind - Beta 13 @@@ ROGUE MODE // 2024.05.04 @ 19:49:49 Player: Lenbot7 Result: Destroyed by X-57 Shotgunner with High-powered Shotgun Performance ------------- Evolutions (2) 1000 Regions Visited (5) 1000 Robots Destroyed (35) 175 Value Destroyed (730) 730 Prototype IDs (0) 0 Alien Tech Used (0) 0 Bonus (0) 0 TOTAL SCORE: 2905 Bonus ------- None Cogmind --------- Core Integrity 0/550 Matter 223/300 Energy 100/100 System Corruption 5% Temperature Cool (0) Movement Core (100) Ox1 Location -8/Materials Parts ------- > --- POWER (2) -------- (None) > --- PROPULSION (3) --- (None) > --- UTILITY (3) ------ Small Storage Unit Improved Targeting Computer Target Analyzer > --- WEAPON (3) ------- (None) > --- INVENTORY (8) ---- (None) Peak State ------------ > --- POWER ------------ Ion Engine > --- PROPULSION ------- Armored Wheel > --- UTILITY ---------- Small Storage Unit Improved Targeting Computer Target Analyzer > --- WEAPON ----------- Autogun Mace Flail > --- INVENTORY -------- Medium Laser [Rating: 15] Favorites ----------- Power Light Ion Engine Engine Light Ion Engine Propulsion Wheel Leg Aluminum Leg Wheel Wheel Utility Small Storage Unit Storage Small Storage Unit Processor Improved Targeting Computer Protection Light Armor Plating Weapon Flail Energy Gun EM Pulse Gun Energy Cannon Particle Cannon Ballistic Gun Autogun Impact Weapon Flail Build | -11 -10 -10 -9 -9 -8 ------- Run | Yrd Mat Min Mat Min Mat Slots Evolved 4 | . . . 2 . 2 Power 1 | . . . . . 1 Propulsion 1 | . . . 1 . . Utility 1 | . . . . . 1 Weapon 1 | . . . 1 . . Parts Attached 30 | 6 . . 14 . 10 Power 5 | 1 . . 2 . 2 Engine 5 | 1 . . 2 . 2 Core . | . . . . . . Reactor . | . . . . . . Propulsion 5 | 2 . . 2 . 1 Treads . | . . . . . . Leg 1 | . . . 1 . . Wheel 4 | 2 . . 1 . 1 Hover . | . . . . . . Flight . | . . . . . . Utility 9 | 1 . . 5 . 3 Device . | . . . . . . Storage 4 | 1 . . 3 . . Processor 4 | . . . 1 . 3 Hackware . | . . . . . . Protection 1 | . . . 1 . . Artifact . | . . . . . . Weapon 11 | 2 . . 5 . 4 Energy Gun 6 | 2 . . 2 . 2 Energy Cannon 1 | . . . 1 . . Ballistic Gun 1 | . . . . . 1 Ballistic Cannon . | . . . . . . Launcher . | . . . . . . Special Weapon . | . . . . . . Impact Weapon 3 | . . . 2 . 1 Slashing Weapon . | . . . . . . Piercing Weapon . | . . . . . . Special Melee Weapon . | . . . . . . Unidentified Prototypes . | . . . . . . Parts Lost 16 | . . 1 4 2 9 Power 5 | . . 1 1 . 3 Propulsion 3 | . . . . 1 2 Utility 1 | . . . . 1 . Weapon 7 | . . . 3 . 4 Highest Loss Streak 6 | . . 1 4 1 6 To Critical Strikes . | . . . . . . Average Slot Usage (%) 76 | . 85 80 77 86 60 Engine 9 | . 14 9 7 11 8 Wheel 20 | . 28 28 23 24 7 Storage 11 | . 14 14 11 11 9 Processor 2 | . . . . . 12 Protection 3 | . . . 6 7 . Energy Gun 10 | . 28 28 12 . . Energy Cannon 6 | . . . 8 11 3 Ballistic Gun 1 | . . . . . 5 Impact Weapon 10 | . . . 8 22 14 Naked Turns . | . . . . . . Heaviest Build 23 | 14 14 14 19 19 23 Greatest Support 38 | 26 26 26 38 38 22 Greatest Overweight (x) 7 | . . . . . 7 Average Overweight (x) . | . . . . . 1 Largest Inventory Capacity 25 | 8 8 8 25 8 8 Average Capacity 7 | 7 8 8 8 8 8 Most Carried 5 | 5 2 2 3 3 4 Average Carried 1 | 2 2 2 1 3 1 Final Capacity 8 | 8 8 8 8 8 8 Final Carried 3 | 2 2 2 3 3 . Class Distribution -------------------- 97% | Mutant Dominant Class ---------------- Mutant | -10/Materials Mutant | -10/Mines Mutant | -9/Materials Mutant | -9/Mines Mutant | -8/Materials Resources | -11 -10 -10 -9 -9 -8 ----------- Run | Yrd Mat Min Mat Min Mat Matter Collected 444 | 188 72 . 101 14 69 Remotely . | . . . . . . Salvage Created 1020 | . 105 145 462 131 177 Parts 77 | . 8 12 28 9 20 Haulers Intercepted . | . . . . . . Recyclers Shooed . | . . . . . . Parts Field Recycled . | . . . . . . Retrieved Matter . | . . . . . . Parts Self-Destructed . | . . . . . . Prevented . | . . . . . . Kills | -11 -10 -10 -9 -9 -8 ------- Run | Yrd Mat Min Mat Min Mat Combat Hostiles Destroyed 30 | . 2 5 9 6 8 Melee 2 | . . . . 1 1 Guns 13 | . 1 5 4 . 3 Cannons 11 | . . . 4 3 4 AOE 1 | . 1 . . . . Classes Destroyed 8 | . 1 1 5 . 1 Worker 1 | . . . . . 1 Builder 1 | . . . 1 . . Recycler 1 | . . . 1 . . Watcher 2 | . . . 2 . . Swarmer 17 | . . 3 3 4 7 Grunt 10 | . 2 2 4 2 . Duelist 1 | . . . 1 . . Sentry 2 | . . . 1 . 1 Best Kill Streak 6 | . 2 3 6 4 3 Combat Bots Only 4 | . 2 3 3 4 2 Max Kills in Single Turn 1 | . 1 1 1 1 1 Gunslinging . | . . . . . . Exploded 1 | . 1 . . . . Melee 1 | . . . . 1 1 Uniques/NPCs Destroyed . | . . . . . . Combat | -11 -10 -10 -9 -9 -8 -------- Run | Yrd Mat Min Mat Min Mat Hostile Shots Fired 262 | . 1 23 49 25 164 Missed 89 | . . 10 14 8 57 Damage Taken 2067 | . 14 149 499 178 1227 Core 822 | . . 38 164 59 561 Absorbed by Shields . | . . . . . . Core Remaining (%) 76 | 100 . 84 . 44 . Volleys Fired 78 | . 3 13 23 10 29 Largest 3 | . 2 2 3 1 2 Hottest 125 | . 80 80 125 68 91 Shots Fired 116 | . 6 26 37 10 37 Gun 78 | . 6 26 26 . 20 Cannon 38 | . . . 11 10 17 Launcher . | . . . . . . Special . | . . . . . . Kinetic 20 | . . . . . 20 Thermal 52 | . . . 25 10 17 Explosive . | . . . . . . Electromagnetic 44 | . 6 26 12 . . Robot Hit Streak 7 | . 2 6 7 1 6 Robot Miss Streak 4 | . 2 3 4 2 4 Penetration Max . | . . . . . . Secondary Targets . | . . . . . . Shots Hit Robots 80 | . 4 12 28 12 24 Core Hits 40 | . 2 8 14 4 12 Critical Kills 1 | . . . 1 . . Critical Parts Destroyed 2 | . . . . 2 . Critical Strikes 4 | . . . 2 2 . Burn 1 | . . . 1 . . Smash 3 | . . . 1 2 . Melee Attacks 26 | . . . 6 12 8 Impact 26 | . . . 6 12 8 Slashing . | . . . . . . Piercing . | . . . . . . Sneak Attacks 2 | . . . 2 . . Combat Hostiles . | . . . . . . Follow-up Attacks 5 | . . . . 4 1 Damage Inflicted 1616 | . 105 150 517 368 476 Guns 648 | . 55 150 246 . 197 Cannons 348 | . . . 83 82 183 Explosions 50 | . 50 . . . . Melee 561 | . . . 188 286 87 Ramming 9 | . . . . . 9 Kinetic 197 | . . . . . 197 Thermal 485 | . 50 . 170 82 183 Explosive . | . . . . . . Electromagnetic 364 | . 55 150 159 . . Impact 561 | . . . 188 286 87 Slashing . | . . . . . . Piercing . | . . . . . . Highest Corruption 5 | . . . . . 5 Average Corruption 4 | . . . . . 4 Corruption Purged . | . . . . . . Corruption Blocked . | . . . . . . Effects 5 | . . . . . 5 Message Errors 1 | . . . . . 1 Matter Fused 2 | . . . . . 2 Data Loss (minor) 2 | . . . . . 2 Overload Shots . | . . . . . . Overflow Damage 107 | . . . 31 68 8 Projectiles . | . . . . . . Explosions . | . . . . . . Melee 107 | . . . 31 68 8 Knockbacks 2 | . . . . . 2 Impact 2 | . . . . . 2 Kinetic . | . . . . . . Secondary . | . . . . . . Self-Inflicted Damage 4 | . . . . . 4 Shots . | . . . . . . Rammed 4 | . . . . . 4 Targets Rammed 4 | . . . . . 4 Kicked . | . . . . . . Crushed . | . . . . . . Highest Temperature 172 | . 83 144 158 154 172 Average Temperature 61 | . 45 55 58 71 67 Received Heat Transfer 285 | . 9 54 138 48 36 Siege Activations . | . . . . . . Robots Corrupted 1 | . . . 1 . . Combat Hostiles 1 | . . . 1 . . Parts Fried 8 | . . . 8 . . Impact Corruptions 8 | . . . 4 3 1 Robots Melted . | . . . . . . Combat Hostiles . | . . . . . . Parts Melted 3 | . . . 2 1 . Heat Transferred 1012 | . 50 . 481 148 333 Parts Sabotaged . | . . . . . . Parts Stolen . | . . . . . . Parts Stripped . | . . . . . . Power Chain Reactions 1 | . 1 . . . . Alert | -11 -10 -10 -9 -9 -8 ------- Run | Yrd Mat Min Mat Min Mat Peak Influence 245 | . 53 130 242 162 245 Initial 63 | . . 20 50 42 63 Average 128 | . 47 85 149 115 185 Maximum Alert Level 1 | . . . 1 . 1 Low Security (%) 82 | 100 100 100 77 100 55 Level 1 17 | . . . 22 . 44 Level 2 . | . . . . . . Level 3 . | . . . . . . Level 4 . | . . . . . . Level 5 . | . . . . . . High Security . | . . . . . . Max Security . | . . . . . . Squads Dispatched 3 | . . . . . 3 Investigation . | . . . . . . Extermination . | . . . . . . Reinforcement 3 | . . . . . 3 Assault . | . . . . . . Garrison . | . . . . . . Intercept . | . . . . . . Searches Triggered . | . . . . . . Construction Impeded . | . . . . . . Haulers Reinforced . | . . . . . . Active Scanning Responses . | . . . . . . Cargo Convoy Interrupts . | . . . . . . Stealth | -11 -10 -10 -9 -9 -8 --------- Run | Yrd Mat Min Mat Min Mat Distress Signals 3 | . . . 2 . 1 Communications Jammed . | . . . . . . Distress Signals . | . . . . . . Times Spotted 44 | . 2 5 15 7 15 Peak Tracking Total 7 | . 2 3 5 4 7 Tactical Retreats . | . . . . . . Traps | -11 -10 -10 -9 -9 -8 ------- Run | Yrd Mat Min Mat Min Mat Traps Triggered 4 | . . . . . 4 Indirectly . | . . . . . . Trap Hack Attempts . | . . . . . . Triggered . | . . . . . . Disarmed . | . . . . . . Reprogrammed . | . . . . . . Reused . | . . . . . . Traps Extracted . | . . . . . . Installed . | . . . . . . Triggered . | . . . . . . Machines | -11 -10 -10 -9 -9 -8 ---------- Run | Yrd Mat Min Mat Min Mat Machines Disabled . | . . . . . . Max in Single Turn . | . . . . . . Machines Repaired . | . . . . . . Machines Dismantled . | . . . . . . Machines Sabotaged . | . . . . . . Overloaded Fab Kills . | . . . . . . Hacking | -11 -10 -10 -9 -9 -8 --------- Run | Yrd Mat Min Mat Min Mat Machines Accessed 4 | . 1 . 3 . . Terminals 2 | . 1 . 1 . . Fabricators . | . . . . . . Repair Stations . | . . . . . . Recycling Units 1 | . . . 1 . . Scanalyzers 1 | . . . 1 . . Garrison Access . | . . . . . . Total Hacks 12 | . 2 . 10 . . Successful 8 | . . . 8 . . Failed 4 | . 2 . 2 . . Catastrophic . | . . . . . . Database Lockouts . | . . . . . . Manual . | . . . . . . Terminals 7 | . 2 . 5 . . Fabricators . | . . . . . . Repair Stations . | . . . . . . Recycling Units 3 | . . . 3 . . Scanalyzers 2 | . . . 2 . . Garrison Access . | . . . . . . Terminal Hacks 3 | . . . 3 . . Record 1 | . . . 1 . . Alert Level 1 | . . . 1 . . Dispatch Records 1 | . . . 1 . . Fabricator Hacks . | . . . . . . Repair Station Hacks . | . . . . . . Recycling Unit Hacks 3 | . . . 3 . . Process 1 | . . . 1 . . Report Inventory 1 | . . . 1 . . Retrieve Matter 1 | . . . 1 . . Scanalyzer 2 | . . . 2 . . Insert Component 1 | . . . 1 . . Analyze 1 | . . . 1 . . Garrison Access Hacks . | . . . . . . Unauthorized Hacks . | . . . . . . Terminals . | . . . . . . Fabricators . | . . . . . . Repair Stations . | . . . . . . Recycling Units . | . . . . . . Scanalyzers . | . . . . . . Garrison Access . | . . . . . . Data Cores Recovered . | . . . . . . Used . | . . . . . . Hacking Detections 4 | . 1 . 3 . . Full Trace Events 1 | . . . 1 . . Feedback Events . | . . . . . . Feedback Blocked . | . . . . . . Robot Schematics Acquired . | . . . . . . Robots Built . | . . . . . . Authchips . | . . . . . . Time . | . . . . . . Total Robot Build Rating . | . . . . . . Part Schematics Acquired 1 | . . . 1 . . Parts Built . | . . . . . . Authchips . | . . . . . . Time . | . . . . . . Total Part Build Rating . | . . . . . . Parts Repaired . | . . . . . . Time . | . . . . . . Parts Recycled . | . . . . . . Recycled Matter 29 | . . . 29 . . Retrieved Matter 29 | . . . 29 . . Retrieved Components . | . . . . . . Parts Scanalyzed 1 | . . . 1 . . Part Schematics Acquired 1 | . . . 1 . . Parts Damaged . | . . . . . . Bothacking | -11 -10 -10 -9 -9 -8 ------------ Run | Yrd Mat Min Mat Min Mat Used RIF Installer . | . . . . . . Robots Hacked . | . . . . . . Non-combat . | . . . . . . Combat . | . . . . . . Robot Hacks Applied . | . . . . . . Relay Couplers Released . | . . . . . . Fabnet Peak Effective % . | . . . . . . Robots Rewired . | . . . . . . Allies Hacked . | . . . . . . Hacks Repelled . | . . . . . . Allies | -11 -10 -10 -9 -9 -8 -------- Run | Yrd Mat Min Mat Min Mat Total Allies . | . . . . . . Largest Group . | . . . . . . Highest-Rated Group . | . . . . . . Highest-Rated Ally . | . . . . . . Total Orders . | . . . . . . Ally Attacks . | . . . . . . Total Damage . | . . . . . . Kills . | . . . . . . Allies Corrupted . | . . . . . . Allies Melted . | . . . . . . Intel | -11 -10 -10 -9 -9 -8 ------- Run | Yrd Mat Min Mat Min Mat Robot Analysis Total . | . . . . . . Derelict Logs Recovered 1 | . . 1 . . . Drone Launches . | . . . . . . Drone Recoveries . | . . . . . . Exploration | -11 -10 -10 -9 -9 -8 ------------- Run | Yrd Mat Min Mat Min Mat Turns Passed 1180 | 44 127 105 434 218 252 Spaces Moved 726 | 37 102 74 250 143 120 Core 24 | 8 . . . . 16 Treads . | . . . . . . Legs . | . . . . . . Wheels 702 | 29 102 74 250 143 104 Hover . | . . . . . . Flight . | . . . . . . Fastest Speed 50 | 50 90 90 90 85 85 Average Speed 93 | 81 90 90 90 85 121 Slowest Speed 400 | 90 90 90 90 90 400 Overloaded Moves . | . . . . . . Propulsion Burnouts . | . . . . . . Robots Hopped . | . . . . . . Cave-ins Triggered . | . . . . . . Exploration Rate (%) 18 | 4 6 21 25 34 21 Regions Visited 5 Branch Regions 2 Pre-discovered Areas 1 | . . . . 1 . Known Exits Taken 1 | . . . . 1 . Unknown Exits Taken 4 | 1 1 1 1 . . Scrap Searched . | . . . . . . Spaces Dug . | . . . . . . Terrain Destroyed 5 | . 5 . . . . Melee . | . . . . . . Projectile . | . . . . . . AOE 5 | . 5 . . . . Terrain Rammed . | . . . . . . Walls Destroyed . | . . . . . . Machines Disabled . | . . . . . . Actions | -11 -10 -10 -9 -9 -8 --------- Run | Yrd Mat Min Mat Min Mat Total 1079 | 50 131 86 416 214 182 Wait 192 | . 27 . 106 54 5 Move 721 | 36 101 73 249 142 120 Hop . | . . . . . . Pick Up 26 | 8 . . 13 . 5 Fast Attach . | . . . . . . Attach 28 | 6 . . 13 . 9 Detach 3 | . . . 1 . 2 Swap 2 | . . . 1 . 1 Drop 4 | . . . 4 . . Fire 78 | . 3 13 23 10 29 Melee 21 | . . . 6 8 7 Ram 4 | . . . . . 4 Kick . | . . . . . . Crush . | . . . . . . Escape Stasis . | . . . . . . Rewire . | . . . . . . Trap . | . . . . . . Miscellaneous . | . . . . . . Route ------- -11/Scrapyard -10/Materials -10/Mines -9/Materials (discovered 2 exits: Mat / [*Min]) -9/Mines -8/Materials History --------- Turn | Location | Event 2 | -11/Scrapyard | Met Revision 17 16 | -11/Scrapyard | Discovered new exit (range 16) 45 | -11/Scrapyard | Entered Materials 45 | -10/Materials | Discovered new exit (range 7) 172 | -10/Materials | Entered Mines 204 | -10/Mines | Learned location of 1 exit from Materials 232 | -10/Mines | Discovered new exit (range 8) 277 | -10/Mines | Entered Materials 277 | -9/Materials | Evolved 2 slots: Propulsion x1, Weapon x1 278 | -9/Materials | Identified exit to Materials 368 | -9/Materials | Lost 4 parts (1p3w) 640 | -9/Materials | Build established: Mutant 697 | -9/Materials | Discovered new exit (range 9) 711 | -9/Materials | Entered Mines 855 | -9/Mines | Core integrity fell below 50% 907 | -9/Mines | Learned location of Storage (-7) 912 | -9/Mines | Discovered exit to Materials (range 7) 929 | -9/Mines | Entered Materials 929 | -8/Materials | Evolved 2 slots: Power x1, Utility x1 1161 | -8/Materials | Core integrity fell below 50% 1174 | -8/Materials | Core integrity fell below 20% 1181 | -8/Materials | Destroyed by X-57 Shotgunner with High-powered Shotgun Last Messages --------------- K-01 Serf collects debris. Med. Laser destroyed. Acquired Arm. Wheel. Arm. Wheel destroyed. K-01 Serf destroyed. K-01 Serf collects debris. X-57 Shotgunner knocked back. K-01 Serf collects debris. K-01 Serf destroyed. Imp. Ion Engine destroyed. |UK#NBR>GXW>5TYBAZ|ZO:3Z0RVWPYU2D/MA X-57 Shotgunner knocked back. W-25 Informer sends out distress signal. Flail destroyed. Critical hit (Blast). Knocked back. Mace destroyed. U-05 Engineer builds a Wall. Slammed into X-57 Shotgunner. K-01 Serf collects debris. Map ----- +----------------------------------------------------+ | ????????????????????# #???????????????# | | ????????????????????# #???????????????# | | ????????????????????# #?????????####### ^ ^ ^ | | ????????????????????# #?????????+ [ | | ????????????????????# #?????????# [ | | ????????????????????# #?????????# [ | | ????????????????????+ +?????????+ | | ????????????????????# #?????????####### | | ????????????????????# #???????????????# | | ????????????????????# #???????????????# | | ????????????????????# ?????????##?????### #### | | ????????????????????# ???????? ???????# #### | | ????????????????????? ?? ""??? ????????# ## | | ?????????????????????????? ""??? ????????# ## " | | ????????????????????? ?????""??" ???????## ## T | | ?????????????????????? ???? ?? ????????# [= # " | | ??????????????????????? ??? ?? ????????# !! # | | ???????????????????????? ###/##/#????????# !=* + | | ????????????????????????? #????????# # | | ?????????????????????????? #????????# ! # | | ??????????????????????????? ########?### ### | | ????????????????????????????# # #???# #?### | | ?????????????????????######## # = #???# #???? | | ?????????????????????# =!!k# #=%! #???# #???? | | ???????????????????### =! u/ x k =%! #???# #???? | | ???????????? + k=@ #% # = #???# #???? | | ??????????? ###### x # # [#???# #???? | | ?????????????????????# # ######+#???# #???? | | ?????????????????????# # ###### ##### ##+## | | ?????????????????????######## | | ????????????????????????????# ############### | | ????????????????????????????+ #??????????????? | | ????????????????????????????# H #???????????????? | | ????????????????????????????# #????????????????? | | ????????????????????????????# #????????????????? | | ???????????????????????????? ????????????????? | | ???????????????????????????? ????????????????? | | ???????????????????????????? ????????????????? | | ???????????????????????????? ! ????????????????? | | ??????????????????????????? = ????????????????? | | ????????????????????????????##+##????????????????? | | ?????????????????????????????????????????????????? | | ?????????????????????????????????????????????????? | | ?????????????????????????????????????????????????? | | ?????????????????????????????????????????????????? | | ?????????????????????????????????????????????????? | | ?????????????????????????????????????????????????? | | ?????????????????????????????????????????????????? | | ?????????????????????????????????????????????????? | | ?????????????????????????????????????????????????? | +----------------------------------------------------+ Best States ------------- Heat Dissipation 31 Energy Generation 17 Energy Capacity 415 Matter Stores 300 Matter Capacity 300 Sight Range 16 Terrain Scan Density 10 Armor Coverage 150 Evasion (%) 50 Targeting Accuracy 12 Target Analysis 5 Item Schematics ----------------- Sml. Storage Unit | -9/Materials | Scanalyzed Robot Schematics ------------------ None Fabricated ------------ Nothing Alien Tech Used ----------------- None Achievements -------------- None Challenges ------------ None Game ------ Seed BeamCouplerRay Manual? 0 Play Time 00:23:21 Cumulative 2.4 hours Start 2024.05.04 @ 19:24:39 End 2024.05.04 @ 19:49:49 Sessions 2 Manual Loads 0 Difficulty Rogue Special Mode None Game No. 10 Rogue 10 Adventurer 0 Explorer 0 Win Type - Total 0 Types 0/0/0/0/0/0/0/0/0 Lore% 4 Gallery% 6 Achievement% 7 Wizard Run 0 Options --------- Layout 1 ASCII 0 Keyboard 0 Movement Mouse Keybinds 0 Fullscreen 1 Font 20/SmallcapsGlow Map View 50x35 Zoom Use 0% Tactical HUD 0 Map Filters NONE Filters NONE Steam 1 RUN: 01dee95c-415b-47f2-99a7-a47574cdc8b7